bitfinex/quotes_BTCUSD_20230114
["timestamp","ask_amount","ask_price","bid_price","bid_amount"]
[1673721731054,0.118,20737.0,20736.0,0.16237476]
[1673721731310,0.118,20737.0,20736.0,0.13341576]
[1673721731549,0.25229844,20738.0,20736.0,0.03189476]
[1673721731786,0.01,20737.0,20736.0,0.07693576]
[1673721732036,0.01,20737.0,20736.0,0.10589376]
[1673721732770,0.25229844,20738.0,20736.0,0.028958]
[1673721733004,0.582113,20742.0,20737.0,0.028956]
[1673721733260,0.22294302,20739.0,20736.0,0.7035115]
[1673721733502,0.01,20737.0,20736.0,1.2587415]
[1673721733767,0.01,20737.0,20736.0,1.2146935]
[1673721734256,0.24713605,20740.0,20736.0,1.6146935]
[1673721734494,0.01,20737.0,20736.0,1.6587415]
[1673721734733,0.24713605,20740.0,20736.0,1.6146965]
[1673721735019,0.24713605,20740.0,20736.0,1.4857415]
[1673721735268,0.21698799,20741.0,20737.0,0.2394786]
[1673721735524,0.19565321,20740.0,20737.0,0.6927386]
[1673721736741,0.492136,20741.0,20737.0,0.6927386]
[1673721736742,0.2255531,20739.0,20737.0,0.6927386]
[1673721737018,0.2255531,20739.0,20737.0,0.2835256]
[1673721737274,0.2255531,20739.0,20737.0,0.073]
[1673721737516,0.2255531,20739.0,20735.0,0.75705292]
[1673721737759,0.41627905,20739.0,20735.0,0.75705292]
[1673721738003,0.42627905,20739.0,20737.0,0.073]
[1673721738240,0.2355531,20739.0,20737.0,0.073]
[1673721738730,0.2255531,20739.0,20736.0,0.24967169]
[1673721738976,0.2355531,20739.0,20736.0,0.24967169]
[1673721739224,0.2255531,20739.0,20736.0,0.24967169]
[1673721739464,0.2355531,20739.0,20737.0,0.073]
[1673721739702,0.2255531,20739.0,20736.0,0.24967169]
[1673721739964,0.2355531,20739.0,20736.0,0.32267169]
[1673721740213,0.2255531,20739.0,20736.0,0.24967169]
[1673721740974,0.19072595,20738.0,20735.0,0.0072642]
[1673721741216,0.964458,20737.0,20735.0,0.0072642]
[1673721741724,0.964458,20737.0,20736.0,0.06869563]
[1673721741980,1.28459,20737.0,20735.0,0.0072642]
[1673721742207,0.182071,20736.0,20735.0,0.0762642]
[1673721742443,0.482253,20736.0,20735.0,0.0072642]
[1673721743169,0.74562746,20736.0,20735.0,0.0702642]
[1673721743441,1.22788046,20736.0,20735.0,0.06811202]
[1673721744400,1.22788046,20736.0,20735.0,0.00511202]
[1673721744401,1.21588046,20736.0,20735.0,0.00511202]
[1673721744643,1.21588046,20736.0,20735.0,0.06711202]
[1673721744644,1.54601246,20736.0,20735.0,0.06711202]
[1673721744876,1.40795146,20736.0,20735.0,0.06711202]
[1673721745378,1.54601246,20736.0,20735.0,0.06711202]
[1673721745622,1.40795146,20736.0,20735.0,0.06711202]
[1673721745886,1.22588046,20736.0,20735.0,0.06711202]
[1673721746105,1.54601246,20736.0,20735.0,0.06495984]
[1673721747051,1.22588046,20736.0,20735.0,0.06495984]
[1673721747263,1.54601246,20736.0,20735.0,0.06495984]
[1673721747478,1.40795146,20736.0,20735.0,0.06495984]
[1673721747904,1.54601246,20736.0,20735.0,0.06495984]
[1673721748373,1.22588046,20736.0,20735.0,0.06495984]
[1673721748602,1.54601246,20736.0,20735.0,0.06495984]
[1673721748825,1.54601246,20736.0,20735.0,0.06280766]
[1673721749052,1.22588046,20736.0,20735.0,0.06280766]
[1673721749261,1.54601246,20736.0,20735.0,0.06280766]
[1673721749428,0.74362746,20736.0,20735.0,0.06280766]
[1673721749680,0.26137446,20736.0,20735.0,0.06280766]
[1673721749879,0.01,20736.0,20735.0,0.06280766]
[1673721750057,0.01,20736.0,20735.0,0.32665332]
[1673721751813,0.01,20736.0,20735.0,1.32016832]
[1673721753258,0.01,20736.0,20735.0,1.93329822]
[1673721753512,0.01,20736.0,20735.0,1.45102222]
[1673721754482,0.01,20736.0,20735.0,1.42205922]
[1673721754726,0.01,20736.0,20735.0,1.45102222]
[1673721756666,0.01,20736.0,20735.0,0.83789232]
[1673721756901,0.01,20736.0,20735.0,0.80892932]
[1673721757398,0.01,20736.0,20735.0,0.83789232]
[1673721757908,0.01,20736.0,20735.0,0.83573968]
[1673721759325,0.01,20736.0,20735.0,1.31801568]
[1673721759567,0.01,20736.0,20735.0,1.46194723]
[1673721760057,0.20101563,20739.0,20735.0,1.40129221]
[1673721760335,0.20101563,20739.0,20735.0,1.37232921]
[1673721760557,0.003,20736.0,20735.0,1.51132921]
[1673721760813,0.20101563,20739.0,20735.0,1.37232921]
[1673721761055,0.20101563,20739.0,20735.0,1.02905321]
[1673721761276,0.20101563,20739.0,20735.0,0.89005321]
[1673721761508,0.003,20736.0,20735.0,1.02905321]
[1673721761747,0.2575314,20738.0,20735.0,0.74612166]
[1673721762234,0.2575314,20738.0,20736.0,0.19854341]
[1673721763678,0.2605314,20738.0,20736.0,0.33754341]
[1673721763895,0.003,20738.0,20736.0,0.81979541]
[1673721764647,0.19431774,20738.0,20736.0,0.33754341]
[1673721765904,0.003,20738.0,20736.0,0.33754341]
[1673721766137,0.003,20738.0,20737.0,0.23928516]
[1673721767443,0.2610438,20739.0,20737.0,0.23928516]
[1673721767707,0.003,20738.0,20737.0,0.37828516]
[1673721769763,0.003,20738.0,20737.0,0.139]
[1673721770061,0.19459567,20738.0,20737.0,0.139]
[1673721771369,0.003,20738.0,20737.0,0.139]
[1673721773215,0.003,20738.0,20737.0,0.13892387]
[1673721773466,0.003,20738.0,20737.0,1.10338187]
[1673721773733,0.003,20738.0,20737.0,2.33346737]
[1673721773995,0.003,20738.0,20737.0,1.06954633]
[1673721774278,0.003,20738.0,20737.0,0.92742376]
[1673721774525,0.003,20738.0,20737.0,0.36648036]
[1673721774776,0.003,20738.0,20737.0,0.97961026]
[1673721775328,0.003,20738.0,20737.0,0.36648036]
[1673721775878,0.003,20738.0,20737.0,0.13892387]
[1673721776132,0.26975268,20738.0,20737.0,0.13892387]
[1673721778766,1.07209068,20738.0,20737.0,0.13892387]
[1673721779276,0.93402968,20738.0,20737.0,0.13892387]
[1673721779530,1.00649269,20738.0,20737.0,0.13892387]
[1673721779771,1.55429668,20738.0,20737.0,0.13892387]
[1673721780272,1.69790095,20738.0,20737.0,0.13892387]
[1673721780526,1.55429668,20738.0,20737.0,0.13892387]
[1673721781515,1.23416468,20738.0,20737.0,0.13892387]
[1673721781763,1.55429668,20738.0,20737.0,0.13892387]
[1673721782258,1.23416468,20738.0,20737.0,0.13892387]
[1673721782494,0.75195868,20738.0,20737.0,0.13892387]
[1673721783547,0.26975268,20738.0,20737.0,0.13892387]
[1673721790113,1.42800634,20738.0,20737.0,0.13892387]
[1673721790334,2.75539377,20738.0,20737.0,0.13892387]
[1673721790547,3.04307367,20738.0,20737.0,0.13892387]
[1673721790777,2.53968041,20738.0,20737.0,0.13892387]
[1673721790993,3.40261721,20738.0,20737.0,0.13892387]
[1673721791262,3.83329544,20738.0,20737.0,0.13892387]
[1673721791446,3.48615536,20738.0,20737.0,0.13892387]
[1673721791671,3.84333346,20738.0,20734.0,0.00746735]
[1673721791887,0.14406433,20736.0,20734.0,0.00746735]
[1673721792138,1.284684,20735.0,20734.0,0.00746735]
[1673721792347,0.964552,20735.0,20734.0,0.00746735]
[1673721792809,1.284684,20735.0,20734.0,0.00746735]
[1673721793031,1.146623,20735.0,20734.0,0.00746735]
[1673721793314,0.964552,20735.0,20734.0,0.00746735]
[1673721793712,0.968552,20735.0,20734.0,0.14646735]
[1673721794184,1.20272987,20735.0,20734.0,0.14646735]
[1673721795114,0.72045387,20735.0,20734.0,0.14646735]
[1673721795531,0.72036482,20735.0,20734.0,0.14646735]
[1673721797112,0.23817787,20735.0,20734.0,0.14646735]
[1673721798265,0.72045387,20735.0,20734.0,0.14646735]
[1673721801054,1.20272987,20735.0,20734.0,0.14646735]
[1673721804420,1.4923915,20735.0,20734.0,0.14646735]
[1673721804650,1.63645583,20735.0,20734.0,0.14646735]
[1673721804941,1.4923915,20735.0,20734.0,0.14646735]
[1673721805208,0.968552,20735.0,20734.0,0.39375372]
[1673721805973,0.968552,20735.0,20734.0,0.14431492]
[1673721806280,1.21651711,20735.0,20734.0,0.14431492]
[1673721807557,1.24022081,20735.0,20734.0,0.14431492]
[1673721808061,1.56035281,20735.0,20734.0,0.14431492]
[1673721808310,1.67794895,20735.0,20734.0,0.14431492]
[1673721808611,1.35781695,20735.0,20734.0,0.14431492]
[1673721808870,1.24022081,20735.0,20734.0,0.14431492]
[1673721810849,1.56035281,20735.0,20734.0,0.14431492]
[1673721811355,1.24022081,20735.0,20734.0,0.14431492]
[1673721811603,1.24022081,20735.0,20734.0,0.14423897]
[1673721811853,1.56035281,20735.0,20734.0,0.14423897]
[1673721812622,1.82944464,20735.0,20734.0,0.14423897]
[1673721813129,1.56035281,20735.0,20734.0,0.14423897]
[1673721813626,1.70441714,20735.0,20734.0,0.14423897]
[1673721815901,1.70441714,20735.0,20734.0,0.14208651]
[1673721817144,1.56035281,20735.0,20734.0,0.14208651]
[1673721817357,1.70441714,20735.0,20734.0,0.14208651]
[1673721817611,1.56035281,20735.0,20734.0,0.14208651]
[1673721818364,1.70441714,20735.0,20734.0,0.14208651]
[1673721818618,1.56035281,20735.0,20734.0,0.13993408]
[1673721818862,1.70441714,20735.0,20734.0,0.13993408]
[1673721819077,1.56035281,20735.0,20734.0,0.13993408]
[1673721819558,1.70441714,20735.0,20734.0,0.13993408]
[1673721820345,1.92051363,20735.0,20734.0,0.13993408]
[1673721820844,1.70441714,20735.0,20734.0,0.13993408]
[1673721821336,1.92051363,20735.0,20734.0,0.13993408]
[1673721821574,2.22562327,20735.0,20734.0,0.13993408]
[1673721822336,2.00952678,20735.0,20734.0,0.13993408]
[1673721823888,2.22562327,20735.0,20734.0,0.13993408]
[1673721824132,2.00952678,20735.0,20734.0,0.13993408]
[1673721824363,2.22562327,20735.0,20734.0,0.13993408]
[1673721824852,2.00952678,20735.0,20734.0,0.13993408]
[1673721825368,2.22562327,20735.0,20734.0,0.13993408]
[1673721826841,2.00952678,20735.0,20734.0,0.13993408]
[1673721827340,0.0277037,20735.0,20734.0,0.13993408]
[1673721827635,0.0277037,20735.0,20734.0,0.38437151]
[1673721827884,0.02756417,20735.0,20734.0,0.38437151]
[1673721828130,0.02756417,20735.0,20734.0,1.48847151]
[1673721828389,0.02756417,20735.0,20734.0,1.97077051]
[1673721829128,0.02256417,20735.0,20734.0,1.97077051]
[1673721829629,0.02256417,20735.0,20734.0,2.59736577]
[1673721830884,0.02256417,20735.0,20734.0,2.81380005]
[1673721831112,0.02256417,20735.0,20734.0,2.94862639]
[1673721831370,0.02256417,20735.0,20734.0,2.80516563]
[1673721831608,0.02256417,20735.0,20734.0,2.66078349]
[1673721831882,0.02256417,20735.0,20734.0,2.94862639]
[1673721832374,0.02256417,20735.0,20734.0,3.24862639]
[1673721832637,0.9422921,20742.0,20736.0,0.00860803]
[1673721832638,0.19624167,20742.0,20736.0,0.00860803]
[1673721832894,0.23040989,20741.0,20737.0,1.83649635]
[1673721833146,0.23040989,20741.0,20739.0,1.446549]
[1673721833385,0.14406433,20743.0,20739.0,1.446549]
[1673721833386,0.22485476,20743.0,20740.0,0.028944]
[1673721833627,0.22485476,20743.0,20741.0,0.964264]
[1673721833875,0.22485476,20743.0,20742.0,0.028935]
[1673721834120,0.22485476,20743.0,20742.0,0.028934]
[1673721834354,0.22485476,20743.0,20742.0,0.511047]
[1673721834617,0.22485476,20743.0,20742.0,0.482113]
[1673721834867,0.01133927,20744.0,20742.0,0.482113]
[1673721835107,0.25078771,20744.0,20742.0,0.482113]
[1673721835376,0.25078771,20744.0,20741.0,0.67579455]
[1673721835623,0.25078771,20744.0,20742.0,0.141]
[1673721835862,0.25078771,20744.0,20741.0,1.15791455]
[1673721836119,0.25078771,20744.0,20742.0,0.022]
[1673721836363,0.25078771,20744.0,20742.0,0.482106]
[1673721836612,0.25078771,20744.0,20742.0,0.623106]
[1673721836890,0.25078771,20744.0,20742.0,0.482106]
[1673721837643,0.25078771,20744.0,20742.0,0.74450998]
[1673721837901,0.25078771,20744.0,20742.0,0.76650998]
[1673721839912,0.01133927,20744.0,20743.0,0.18787109]
[1673721841469,0.01533927,20744.0,20743.0,0.48209]
[1673721841718,0.01533927,20744.0,20743.0,1.293111]
[1673721842216,0.01533927,20744.0,20743.0,2.397411]
[1673721842459,0.01533927,20744.0,20743.0,2.32502411]
[1673721842712,0.01133927,20744.0,20743.0,2.32502411]
[1673721842970,0.01133927,20744.0,20743.0,2.8495409]
[1673721843261,0.01133927,20744.0,20743.0,3.1495409]
[1673721844006,0.01133927,20744.0,20743.0,2.8495409]
[1673721844286,0.01133927,20744.0,20743.0,3.04337124]
[1673721844523,0.01133927,20744.0,20743.0,2.8495409]
[1673721844773,0.01133927,20744.0,20743.0,3.1495409]
[1673721845031,0.01133927,20744.0,20743.0,3.0105409]
[1673721845307,0.01133927,20744.0,20743.0,3.35661486]
[1673721845550,0.01133927,20744.0,20743.0,3.21761486]
[1673721845797,0.01133927,20744.0,20743.0,3.05661486]
[1673721846558,0.01133927,20744.0,20743.0,1.8853609]
[1673721846559,0.46439415,20744.0,20743.0,1.8853609]
[1673721846823,0.2736682,20744.0,20743.0,1.7174299]
[1673721847089,0.2736682,20744.0,20743.0,0.139]
[1673721847648,0.2736682,20744.0,20741.0,1.288391]
[1673721847898,0.46439415,20744.0,20741.0,0.230491]
[1673721848107,0.2736682,20744.0,20743.0,0.139]
[1673721848661,1.0758672,20744.0,20743.0,0.139]
[1673721848920,1.2378022,20744.0,20743.0,0.139]
[1673721849171,1.5579342,20744.0,20743.0,0.139]
[1673721849377,1.5579342,20744.0,20739.0,1.73170371]
[1673721849681,1.5579342,20744.0,20741.0,0.139]
[1673721849682,0.19072595,20743.0,20741.0,0.139]
[1673721849926,1.2378022,20744.0,20739.0,1.73170371]
[1673721850175,1.2378022,20744.0,20743.0,0.139]
[1673721850176,1.16619922,20744.0,20743.0,0.139]
[1673721850387,0.19116483,20743.0,20740.0,0.26536907]
[1673721850673,0.19116483,20743.0,20740.0,0.74752807]
[1673721851393,0.19116483,20743.0,20741.0,0.028937]
[1673721851660,0.19116483,20743.0,20740.0,0.74752807]
[1673721852165,0.19116483,20743.0,20741.0,0.028936]
[1673721852416,0.19216483,20743.0,20740.0,0.88652807]
[1673721852662,0.19216483,20743.0,20741.0,0.028936]
[1673721852930,0.001,20743.0,20740.0,1.36868807]
[1673721853182,0.01133927,20744.0,20742.0,0.028934]
[1673721853438,0.01133927,20744.0,20741.0,0.921131]
[1673721853439,0.001,20743.0,20741.0,0.921131]
[1673721853680,0.001,20743.0,20742.0,0.028932]
[1673721853933,0.00065311,20743.0,20742.0,1.575249]
[1673721854188,0.01133927,20744.0,20742.0,1.846317]
[1673721854431,0.01233927,20744.0,20743.0,0.02893]
[1673721854686,0.01233927,20744.0,20743.0,0.99311]
[1673721854928,0.01233927,20744.0,20743.0,1.29311]
[1673721855196,0.01133927,20744.0,20743.0,1.29311]
[1673721855440,0.01133927,20744.0,20743.0,2.37511]
[1673721855943,0.01133927,20744.0,20743.0,2.51411]
[1673721857687,0.01133927,20744.0,20743.0,2.71373541]
[1673721857936,0.01133927,20744.0,20743.0,2.51411]
[1673721858410,0.01133927,20744.0,20743.0,2.70593077]
[1673721858663,0.01133927,20744.0,20743.0,2.51411]
[1673721859161,0.01133927,20744.0,20743.0,2.61411]
[1673721860413,0.1,20754.0,20743.0,2.61411]
[1673721860671,0.19072595,20754.0,20744.0,0.60967648]
[1673721860967,0.32535269,20753.0,20746.0,1.446012]
[1673721861208,0.32535269,20753.0,20748.0,0.61121835]
[1673721861515,0.13462674,20753.0,20749.0,0.992781]
[1673721861704,0.13462674,20753.0,20749.0,0.963878]
[1673721862765,0.13462674,20753.0,20750.0,0.028898]
[1673721862999,0.13462674,20753.0,20751.0,0.481904]
[1673721863268,0.01259648,20753.0,20752.0,0.11311]
[1673721863520,0.01259648,20753.0,20752.0,0.34519193]
[1673721863762,0.00759648,20753.0,20752.0,0.33873974]
[1673721864508,0.01059648,20753.0,20752.0,0.36763174]
[1673721864732,0.00759648,20753.0,20752.0,0.33873974]
[1673721864979,0.00959648,20753.0,20752.0,0.34873974]
[1673721865485,0.00959648,20753.0,20752.0,0.83062074]
[1673721865975,0.00959648,20753.0,20752.0,1.34139174]
[1673721866733,0.00959648,20753.0,20752.0,1.33923959]
[1673721866987,0.00959648,20753.0,20752.0,0.85735859]
[1673721867997,0.00959648,20753.0,20752.0,1.10715766]
[1673721868271,0.00959648,20753.0,20752.0,1.45769319]
[1673721869090,0.00959648,20753.0,20752.0,1.35769319]
[1673721869566,0.00959648,20753.0,20752.0,0.520771]
[1673721869821,0.00959648,20753.0,20752.0,0.01]
[1673721870074,0.00959648,20753.0,20752.0,0.12311]
[1673721870354,0.00959648,20753.0,20752.0,0.84895478]
[1673721870588,0.12783405,20757.0,20753.0,0.25592359]
[1673721871338,0.60960105,20757.0,20754.0,0.20397957]
[1673721871591,0.62519573,20759.0,20755.0,0.481811]
[1673721871836,0.1191004,20758.0,20754.0,0.68580457]
[1673721872340,0.1520679,20757.0,20754.0,0.68580457]
[1673721872592,0.481743,20758.0,20754.0,0.20397957]
[1673721872880,0.12716115,20756.0,20752.0,6e-05]
[1673721873092,0.67253695,20755.0,20752.0,0.23086865]
[1673721873604,0.35957322,20758.0,20752.0,0.23086865]
[1673721873605,0.14347673,20758.0,20752.0,6e-05]
[1673721873868,0.50422514,20759.0,20753.0,0.028885]
[1673721873869,0.481718,20759.0,20753.0,0.028885]
[1673721874134,0.481717,20760.0,20753.0,0.5116447]
[1673721874382,0.82717577,20760.0,20754.0,0.963644]
[1673721874684,0.14510533,20759.0,20754.0,1.4752887]
[1673721874911,0.33583128,20759.0,20754.0,1.5752887]
[1673721875163,0.14111927,20758.0,20754.0,1.4752887]
[1673721875415,0.19072595,20759.0,20754.0,1.4752887]
[1673721875659,0.19072595,20759.0,20755.0,0.028878]
[1673721875907,0.1515031,20759.0,20755.0,0.963603]
[1673721876156,0.1515031,20759.0,20755.0,1.063603]
[1673721876431,0.1515031,20759.0,20756.0,0.29809621]
[1673721876928,0.1515031,20759.0,20756.0,0.77988321]
[1673721877968,0.1515031,20759.0,20756.0,0.87288321]
[1673721878197,0.481688,20761.0,20756.0,0.87288321]
[1673721878487,0.16329099,20760.0,20756.0,1.38452791]
[1673721878741,0.16329099,20760.0,20756.0,0.87288321]
[1673721879000,0.16329099,20760.0,20757.0,0.24031813]
[1673721880514,0.481693,20761.0,20757.0,0.26231813]
[1673721880756,0.59941894,20761.0,20757.0,0.26231813]
[1673721881510,0.11772594,20761.0,20758.0,0.26358126]
[1673721881755,0.49426748,20762.0,20758.0,0.26358126]
[1673721882016,0.60890886,20762.0,20758.0,0.26358126]
[1673721882287,0.320132,20761.0,20758.0,0.26358126]
[1673721882521,0.60890886,20762.0,20758.0,0.26358126]
[1673721883094,0.12723786,20762.0,20758.0,0.74531626]
[1673721883286,0.12723786,20762.0,20758.0,1.35696096]
[1673721883540,0.12823786,20762.0,20758.0,1.25696096]
[1673721883781,0.12823786,20762.0,20758.0,0.74531626]
[1673721884029,0.12823786,20762.0,20759.0,0.24738893]
[1673721885058,0.01359648,20762.0,20759.0,0.24738893]
[1673721885340,0.01359648,20762.0,20759.0,1.17928402]
[1673721885588,0.16149132,20762.0,20759.0,1.17928402]
[1673721885849,0.16249132,20762.0,20759.0,0.70356602]
[1673721886617,0.16249132,20762.0,20760.0,0.24319813]
[1673721888379,0.16149132,20762.0,20760.0,0.24319813]
[1673721888621,0.16249132,20762.0,20760.0,0.25219813]
[1673721889134,0.320132,20761.0,20760.0,0.009]
[1673721889417,1.42234806,20761.0,20760.0,0.009]
[1673721889627,1.283476,20761.0,20760.0,0.009]
[1673721890128,1.583476,20761.0,20760.0,0.00906]
[1673721890409,1.583476,20761.0,20753.0,0.61121835]
[1673721890410,0.96352,20758.0,20753.0,0.61121835]
[1673721890664,0.51085795,20757.0,20753.0,0.61121835]
[1673721890910,1.81817195,20756.0,20752.0,0.28050345]
[1673721891167,0.51085795,20755.0,20752.0,0.28050345]
[1673721891405,1.15439395,20754.0,20752.0,0.28050345]
[1673721891652,1.15439395,20754.0,20751.0,1.0585]
[1673721891898,0.64318659,20753.0,20751.0,1.0585]
[1673721892413,0.64318659,20753.0,20752.0,0.027]
[1673721892632,0.64318659,20753.0,20751.0,1.33574545]
[1673721892881,0.64318659,20753.0,20751.0,1.36274545]
[1673721893140,0.64318659,20753.0,20751.0,1.33574545]
[1673721893390,0.65718659,20753.0,20751.0,0.30424545]
[1673721893663,0.495863,20753.0,20751.0,0.30424545]
[1673721894132,0.495863,20753.0,20752.0,0.142002]
[1673721894397,0.481863,20753.0,20752.0,0.11311]
[1673721894646,0.495863,20753.0,20752.0,0.11311]
[1673721895166,0.509863,20753.0,20752.0,0.14811]
[1673721895431,0.481863,20753.0,20751.0,0.27724545]
[1673721895646,0.495863,20753.0,20752.0,0.035]
[1673721895891,0.014,20753.0,20752.0,0.177]
[1673721896139,0.60410068,20754.0,20752.0,0.11311]
[1673721896670,0.014,20753.0,20752.0,0.14811]
[1673721896947,0.62143072,20753.0,20752.0,0.035]
[1673721897708,0.60743072,20753.0,20751.0,0.27724545]
[1673721897981,0.60743072,20753.0,20752.0,0.035]
[1673721898250,0.60743072,20753.0,20751.0,0.27724545]
[1673721898448,0.62143072,20753.0,20751.0,0.27724545]
[1673721898955,0.63543072,20753.0,20751.0,0.31224545]
[1673721899213,1.11728872,20753.0,20751.0,0.31224545]
[1673721899556,1.11728872,20753.0,20751.0,0.035]
[1673721901300,0.16238517,20752.0,20751.0,0.034305]
[1673721901544,0.51085795,20752.0,20751.0,0.034305]
[1673721901815,1.73584094,20752.0,20751.0,0.034305]
[1673721902129,2.89252773,20752.0,20751.0,0.034305]
[1673721902381,2.89252773,20752.0,20750.0,0.00619339]
[1673721902382,0.182071,20751.0,20750.0,0.00619339]
[1673721902666,1.51397275,20751.0,20750.0,0.00619339]
[1673721902916,1.154379,20751.0,20750.0,0.00619339]
[1673721903735,1.59823493,20751.0,20750.0,0.00619339]
[1673721904009,3.5539274,20751.0,20750.0,0.00619339]
[1673721904277,2.90843655,20751.0,20750.0,0.03719339]
[1673721904539,1.145879,20751.0,20750.0,0.00619339]
[1673721904797,0.669975,20751.0,20750.0,0.00619339]
[1673721905057,0.663975,20751.0,20750.0,0.00619339]
[1673721905304,0.045,20751.0,20750.0,0.42085012]
[1673721906086,0.61704754,20754.0,20750.0,0.41585012]
[1673721906332,0.61704754,20754.0,20750.0,0.44485012]
[1673721906333,0.006,20751.0,20750.0,0.44485012]
[1673721906596,0.61704754,20754.0,20750.0,0.41585012]
[1673721906828,0.013,20751.0,20750.0,0.15030339]
[1673721907090,0.481835,20754.0,20750.0,0.60123039]
[1673721907381,0.013,20754.0,20751.0,0.028894]
[1673721907614,0.013,20754.0,20751.0,0.27549392]
[1673721907887,0.97667,20754.0,20751.0,0.27549392]
[1673721908123,0.97667,20754.0,20751.0,1.32229392]
[1673721908938,1.10884339,20754.0,20751.0,1.32229392]
[1673721909183,1.09584339,20754.0,20751.0,1.32229392]
[1673721909432,1.09584339,20754.0,20751.0,1.35329392]
[1673721909433,1.10884339,20754.0,20751.0,1.35329392]
[1673721910468,1.10884339,20754.0,20752.0,0.23051663]
[1673721910708,1.09584339,20754.0,20752.0,0.23051663]
[1673721910960,1.10984339,20754.0,20752.0,0.23051663]
[1673721911233,1.09584339,20754.0,20752.0,0.23051663]
[1673721912221,1.10984339,20754.0,20752.0,0.23051663]
[1673721912708,1.12384339,20754.0,20752.0,0.25851663]
[1673721912964,1.09584339,20754.0,20752.0,0.23051663]
[1673721913205,1.10984339,20754.0,20752.0,0.25851663]
[1673721913444,1.09584339,20754.0,20752.0,0.23051663]
[1673721913725,1.10984339,20754.0,20752.0,0.25851663]
[1673721914225,0.97767,20754.0,20752.0,0.25851663]
[1673721914982,0.96367,20754.0,20752.0,0.23051663]
[1673721915249,0.97767,20754.0,20752.0,0.23051663]
[1673721915499,0.495834,20754.0,20752.0,0.23051663]
[1673721915725,0.509834,20754.0,20752.0,0.25551663]
[1673721915982,0.509834,20754.0,20752.0,0.23051663]
[1673721915983,0.495834,20754.0,20752.0,0.23051663]
[1673721916220,0.495834,20754.0,20752.0,0.25551663]
[1673721916221,0.510834,20754.0,20752.0,0.25551663]
[1673721916516,0.505834,20754.0,20752.0,0.25551663]
[1673721917508,0.029,20754.0,20753.0,0.22040881]
[1673721917729,0.481781,20757.0,20753.0,0.22040881]
[1673721917992,0.015,20754.0,20753.0,0.73205351]
[1673721918253,0.015,20754.0,20753.0,0.24929481]
[1673721918506,0.015,20754.0,20753.0,0.73115281]
[1673721918734,0.481781,20757.0,20753.0,0.70226681]
[1673721918980,0.62856283,20757.0,20753.0,1.23891151]
[1673721919217,0.61556283,20757.0,20753.0,0.70226681]
[1673721919472,0.013,20754.0,20753.0,0.72726681]
[1673721919722,0.61556283,20757.0,20753.0,0.70226681]
[1673721919955,0.62856283,20757.0,20753.0,0.72726681]
[1673721920200,0.013,20757.0,20753.0,0.988716]
[1673721920462,0.013,20757.0,20754.0,0.5405257]
[1673721920710,0.013,20757.0,20755.0,0.963622]
[1673721920944,0.01776568,20759.0,20756.0,0.028876]
[1673721921217,0.17952103,20759.0,20755.0,2.011901]
[1673721921934,0.17952103,20759.0,20756.0,0.028871]
[1673721922194,0.18452103,20759.0,20756.0,1.063549]
[1673721922455,0.17952103,20759.0,20756.0,0.963549]
[1673721922719,0.18452103,20759.0,20756.0,0.963549]
[1673721922949,0.01776568,20759.0,20756.0,0.963549]
[1673721923191,0.01776568,20759.0,20757.0,0.23765534]
[1673721923945,0.02276568,20759.0,20757.0,0.23765534]
[1673721924187,0.01776568,20759.0,20757.0,0.23765534]
[1673721924444,0.02176568,20759.0,20757.0,0.35565534]
[1673721924927,0.02176568,20759.0,20757.0,0.83741734]
[1673721925656,0.02176568,20759.0,20758.0,0.2244641]
[1673721926425,0.02176568,20759.0,20757.0,0.118]
[1673721926664,0.13333886,20758.0,20757.0,0.118]
[1673721926921,0.13333886,20758.0,20756.0,0.23376787]
[1673721927169,0.98122668,20759.0,20756.0,0.23376787]
[1673721927675,0.98622668,20759.0,20757.0,0.121]
[1673721927917,0.98122668,20759.0,20756.0,0.23376787]
[1673721928172,1.12806086,20759.0,20756.0,0.23376787]
[1673721928402,0.64633786,20759.0,20757.0,0.27241848]
[1673721928657,0.50450368,20759.0,20757.0,0.27241848]
[1673721929190,0.78239413,20762.0,20758.0,0.3]
[1673721929191,0.41957913,20762.0,20758.0,0.3]
[1673721929449,0.06013508,20762.0,20759.0,0.54245692]
[1673721929711,0.05513508,20762.0,20759.0,0.51359192]
[1673721929945,0.05513508,20762.0,20760.0,0.028856]
[1673721930199,0.05513508,20762.0,20761.0,0.623635]
[1673721930453,0.00759648,20762.0,20761.0,0.141963]
[1673721931188,0.00759648,20762.0,20761.0,1.105307]
[1673721931441,0.00759648,20762.0,20761.0,1.61889892]
[1673721931674,0.00759648,20762.0,20761.0,1.91889892]
[1673721931910,0.00759648,20762.0,20761.0,1.66889892]
[1673721932897,0.06486906,20762.0,20761.0,1.66889892]
[1673721933464,0.02177628,20768.0,20762.0,0.02723158]
[1673721933712,1.31566643,20773.0,20767.0,0.71579169]
[1673721933970,1.31566643,20773.0,20768.0,0.028825]
[1673721933971,1.12607537,20773.0,20768.0,0.028825]
[1673721934241,1.12607537,20773.0,20769.0,0.026668]
[1673721934242,0.13288985,20771.0,20769.0,0.026668]
[1673721934494,1.0,20773.0,20766.0,0.481545]
[1673721934735,0.51083095,20772.0,20766.0,0.04957221]
[1673721934985,0.184254,20771.0,20768.0,0.10006]
[1673721935246,0.184254,20771.0,20767.0,0.138]
[1673721935247,0.320105,20770.0,20767.0,0.138]
[1673721935512,1.001,20773.0,20767.0,0.138]
[1673721935513,0.15990106,20771.0,20767.0,0.138]
[1673721935749,0.15990106,20771.0,20766.0,0.53111721]
[1673721936023,1.0,20773.0,20769.0,0.141]
[1673721936280,0.14362538,20772.0,20767.0,1.64892656]
[1673721936533,0.14830111,20771.0,20767.0,1.77960527]
[1673721936767,0.33902706,20771.0,20768.0,0.04833069]
[1673721937016,0.14830111,20771.0,20768.0,0.04833069]
[1673721937743,1.0,20773.0,20768.0,0.52983569]
[1673721937994,1.123954,20773.0,20768.0,1.02124527]
[1673721938480,1.123954,20773.0,20769.0,0.026668]
[1673721938481,1.19072595,20773.0,20769.0,0.026668]
[1673721938715,1.0,20773.0,20770.0,0.2669002]
[1673721938958,1.0,20773.0,20771.0,0.026663]
[1673721939199,1.0,20773.0,20770.0,2.05672381]
[1673721939440,0.12763882,20775.0,20771.0,0.481436]
[1673721939681,0.12763882,20775.0,20772.0,0.026659]
[1673721939919,0.12763882,20775.0,20771.0,0.97275593]
[1673721940237,0.006,20773.0,20772.0,0.139767]
[1673721940483,0.15431841,20774.0,20772.0,0.11311]
[1673721941438,0.15431841,20774.0,20772.0,0.2760501]
[1673721942201,0.16031841,20774.0,20772.0,0.2760501]